Cogmind - Beta 14 @@@ ROGUE MODE // 2025.04.26 @ 21:49:43 Player: Desos Result: Destroyed by CP-9Q3(R) with Subdweller Beam Cannon Performance ------------- Evolutions (0) 0 Regions Visited (2) 400 Robots Destroyed (23) 115 Value Destroyed (711) 711 Prototype IDs (11) 220 Alien Tech Used (0) 0 Bonus (0) 0 TOTAL SCORE: 1446 Bonus ------- None Cogmind --------- Core Integrity 0/250 Matter 186/300 Energy 100/100 System Corruption 2% Temperature Cool (9) Movement Treading (360) Ox2 Location -10/Subcaves Parts ------- > --- POWER (1) -------- (None) > --- PROPULSION (2) --- Spiked Treads > --- UTILITY (2) ------ High-capacity Storage Unit Seismic Detector > --- WEAPON (2) ------- Subdweller Shrapnel Launcher Flamer > --- INVENTORY (20) --- Improved Heat Sink Small Battery (100) Medium Matter Pod (100) Medium Matter Pod (100) Medium Matter Pod (44) Machine Analyzer Visual Processing Unit ECM Suite Light Armor Plating Light Armor Plating Light Armor Plating Subdweller Laser Battle Rifle Subdweller Machine Gun Heavy Battle Rifle Light Cannon Peak State ------------ > --- POWER ------------ Light Nuclear Core > --- PROPULSION ------- Light Treads Spiked Treads > --- UTILITY ---------- High-capacity Storage Unit Terrain Scanner > --- WEAPON ----------- Subdweller Beam Cannon Heavy Battle Rifle > --- INVENTORY -------- Light Ion Engine Improved Heat Sink Small Battery Medium Matter Pod Medium Matter Pod Medium Matter Pod Machine Analyzer Visual Processing Unit Seismic Detector ECM Suite Light Armor Plating Light Armor Plating Light Armor Plating Subdweller Laser Battle Rifle Subdweller Machine Gun Light Cannon [Rating: 16] Favorites ----------- Power Light Ion Engine Engine Light Ion Engine Power Core Light Nuclear Core Propulsion Wheel Treads Spiked Treads Wheel Wheel Utility High-capacity Storage Unit Device Seismic Detector Storage High-capacity Storage Unit Protection Light Armor Plating Weapon Light Cannon Energy Gun Medium Laser Energy Cannon Subdweller Beam Cannon Ballistic Gun Heavy Battle Rifle Ballistic Cannon Light Cannon Launcher Grenade Launcher Special Weapon Flamer Special Melee Weapon Datajack Build | -11 -10 -10 ------- Run | Yrd Mat Sub Slots Evolved . | . . . Power . | . . . Propulsion . | . . . Utility . | . . . Weapon . | . . . Parts Attached 68 | 5 48 15 Power 4 | 1 1 2 Engine 3 | 1 1 1 Core 1 | . . 1 Reactor . | . . . Propulsion 33 | 2 28 3 Treads 16 | . 14 2 Leg . | . . . Wheel 17 | 2 14 1 Hover . | . . . Flight . | . . . Utility 15 | 1 11 3 Device 6 | . 4 2 Storage 3 | 1 2 . Processor . | . . . Hackware . | . . . Protection 6 | . 5 1 Artifact . | . . . Weapon 16 | 1 8 7 Energy Gun 3 | 1 2 . Energy Cannon 1 | . . 1 Ballistic Gun 3 | . 1 2 Ballistic Cannon 4 | . 2 2 Launcher 3 | . 2 1 Special Weapon 1 | . . 1 Impact Weapon . | . . . Slashing Weapon . | . . . Piercing Weapon . | . . . Special Melee Weapon 1 | . 1 . Unidentified Prototypes . | . . . Parts Lost 15 | . 6 9 Power 3 | . . 3 Propulsion 4 | . 1 3 Utility 2 | . 1 1 Weapon 6 | . 4 2 Highest Loss Streak 5 | . 5 4 To Critical Strikes . | . . . Average Slot Usage (%) 91 | . 95 89 Engine 10 | . 14 7 Core 3 | . . 5 Treads 11 | . 7 14 Wheel 12 | . 20 7 Device 8 | . 8 8 Storage 14 | . 14 14 Protection 3 | . 4 2 Energy Gun 3 | . 7 . Energy Cannon 3 | . . 5 Ballistic Gun 6 | . 6 6 Ballistic Cannon 4 | . 5 3 Launcher 7 | . 6 8 Special Weapon 2 | . . 3 Peak Build Rating 16 | 5 9 16 Average Rating 10 | 3 8 12 On Entrance 4 | . 5 9 Naked Turns . | . . . Heaviest Build 58 | 10 54 58 Greatest Support 40 | 26 40 40 Greatest Overweight (x) 2 | 1 2 2 Average Overweight (x) 1 | . 1 1 Largest Inventory Capacity 20 | 8 20 20 Average Capacity 19 | 7 19 20 Most Carried 20 | 5 20 20 Average Carried 16 | 3 15 17 Final Capacity 20 | 8 20 20 Final Carried 19 | 4 19 16 Class Distribution -------------------- 100% | Mutant Dominant Class ---------------- Mutant | -10/Materials Mutant | -10/Subcaves Resources | -11 -10 -10 ----------- Run | Yrd Mat Sub Matter Collected 1481 | 208 666 607 Remotely . | . . . Salvage Created 680 | . 463 217 Parts 42 | . 20 22 Haulers Intercepted . | . . . Recyclers Shooed . | . . . Parts Field Recycled . | . . . Retrieved Matter . | . . . Parts Self-Destructed 21 | . . 21 Prevented . | . . . Kills | -11 -10 -10 ------- Run | Yrd Mat Sub Combat Hostiles Destroyed 19 | . 10 9 Melee 1 | . 1 . Guns 10 | . 7 3 Cannons 4 | . 1 3 AOE 3 | . . 3 Classes Destroyed 6 | . 3 3 Operator 1 | . 1 . Watcher 3 | . 3 . Swarmer 4 | . . 4 Grunt 10 | . 10 . Sentry 1 | . . 1 Subdweller 4 | . . 4 Best Kill Streak 3 | . 2 3 Combat Bots Only 3 | . 2 3 Max Kills in Single Turn 2 | . 1 2 Gunslinging . | . . . Exploded 1 | . . 1 Melee 1 | . 1 . Uniques/NPCs Destroyed . | . . . Combat | -11 -10 -10 -------- Run | Yrd Mat Sub Hostile Shots Fired 137 | . 89 48 Missed 29 | . 16 13 Damage Taken 1658 | . 948 710 Core 260 | . 152 108 Absorbed by Shields . | . . . Core Remaining (%) 100 | 100 . . Volleys Fired 111 | . 63 48 Largest 2 | . 2 2 Hottest 115 | . 70 115 Shots Fired 153 | . 88 65 Gun 90 | . 69 21 Cannon 52 | . 19 33 Launcher 11 | . . 11 Special . | . . . Kinetic 97 | . 45 52 Thermal 33 | . 25 8 Explosive 5 | . . 5 Electromagnetic 18 | . 18 . Robot Hit Streak 11 | . 11 10 Robot Miss Streak 4 | . 4 2 Penetration Max . | . . . Secondary Targets . | . . . Shots Hit Robots 80 | . 60 20 Core Hits 39 | . 27 12 Critical Kills . | . . . Critical Parts Destroyed 1 | . 1 . Critical Strikes 4 | . 4 . Burn 3 | . 3 . Destroy 1 | . 1 . Melee Attacks . | . . . Impact . | . . . Slashing . | . . . Piercing . | . . . Sneak Attacks . | . . . Combat Hostiles . | . . . Follow-up Attacks . | . . . Damage Inflicted 1638 | . 925 713 Guns 923 | . 640 283 Cannons 351 | . 196 155 Explosions 332 | . 57 275 Melee . | . . . Ramming 32 | . 32 . Kinetic 860 | . 447 413 Thermal 422 | . 285 137 Explosive 163 | . . 163 Electromagnetic 161 | . 161 . Impact . | . . . Slashing . | . . . Piercing . | . . . Highest Corruption 2 | . 2 2 Average Corruption 2 | . 2 2 Corruption Purged . | . . . Corruption Blocked . | . . . Effects 65 | . 28 37 Message Errors 12 | . 3 9 Matter Fused 13 | . 7 6 Heat Flow Errors 4 | . 1 3 Energy Discharges 11 | . 6 5 Parts Rejected 1 | . . 1 Parts Fused 1 | . 1 . Data Loss (minor) 12 | . 4 8 Data Loss (major) 5 | . 3 2 Misfires 5 | . 2 3 Alerts 1 | . 1 . Overload Shots . | . . . Overflow Damage 23 | . 16 7 Projectiles 22 | . 16 6 Explosions 1 | . . 1 Melee . | . . . Knockbacks 2 | . 1 1 Impact . | . . . Kinetic 2 | . 1 1 Secondary . | . . . Self-Inflicted Damage 14 | . . 14 Shots 1 | . . 1 Rammed 11 | . 11 . Targets Rammed 12 | . 12 . Kicked . | . . . Crushed 1 | . 1 . Highest Temperature 324 | . 324 247 Average Temperature 85 | . 81 117 Received Heat Transfer 594 | . 525 69 Effects 1 | . 1 . Energy Bleed 1 | . 1 . Siege Activations . | . . . Robots Corrupted 1 | . 1 . Combat Hostiles 1 | . 1 . Parts Fried . | . . . Impact Corruptions . | . . . Robots Melted . | . . . Combat Hostiles . | . . . Parts Melted 2 | . 2 . Heat Transferred 1173 | . 988 185 Parts Sabotaged . | . . . Parts Stolen . | . . . Parts Stripped . | . . . Power Chain Reactions 1 | . 1 . Alert | -11 -10 -10 ------- Run | Yrd Mat Sub Peak Influence 125 | . 125 . Initial . | . . . Average 40 | . 41 . Maximum Alert Level . | . . . Low Security (%) 100 | 100 100 . Level 1 . | . . . Level 2 . | . . . Level 3 . | . . . Level 4 . | . . . Level 5 . | . . . High Security . | . . . Max Security . | . . . Squads Dispatched 2 | . 2 . Investigation 1 | . 1 . Extermination . | . . . Reinforcement 1 | . 1 . Assault . | . . . Garrison . | . . . Intercept . | . . . Searches Triggered . | . . . Construction Impeded . | . . . Haulers Reinforced . | . . . Active Scanning Responses . | . . . Cargo Convoy Interrupts . | . . . Stealth | -11 -10 -10 --------- Run | Yrd Mat Sub Distress Signals 1 | . 1 . Communications Jammed . | . . . Distress Signals . | . . . Times Spotted 41 | . 27 14 Peak Tracking Total 4 | . 4 3 Tactical Retreats 4 | . 3 1 Traps | -11 -10 -10 ------- Run | Yrd Mat Sub Traps Triggered 5 | . 4 1 Indirectly . | . . . Trap Hack Attempts . | . . . Triggered . | . . . Disarmed . | . . . Reprogrammed . | . . . Reused . | . . . Traps Extracted . | . . . Installed . | . . . Triggered . | . . . Machines | -11 -10 -10 ---------- Run | Yrd Mat Sub Machines Disabled 2 | . 2 . Max in Single Turn 1 | . 1 . Machines Repaired . | . . . Machines Dismantled . | . . . Machines Sabotaged . | . . . Overloaded Fab Kills . | . . . Hacking | -11 -10 -10 --------- Run | Yrd Mat Sub Machines Accessed 9 | . 8 1 Terminals 7 | . 7 . Fabricators . | . . . Repair Stations . | . . . Recycling Units 1 | . 1 . Scanalyzers . | . . . Garrison Access . | . . . Total Hacks 31 | . 22 9 Successful 20 | . 11 9 Failed 11 | . 11 . Catastrophic 3 | . 3 . Database Lockouts . | . . . Manual 20 | . 19 1 Terminals 16 | . 16 . Fabricators . | . . . Repair Stations . | . . . Recycling Units 6 | . 6 . Scanalyzers . | . . . Garrison Access . | . . . Terminal Hacks 11 | . 2 9 Record 9 | . 1 8 Investigation Status 1 | . 1 . Derelict Proto ID Bank 1 | . . 1 Fabricator Hacks . | . . . Repair Station Hacks . | . . . Recycling Unit Hacks 1 | . 1 . Report Inventory 1 | . 1 . Scanalyzer . | . . . Garrison Access Hacks . | . . . Unauthorized Hacks 8 | . 8 . Terminals 6 | . 6 . Botnet 4 | . 4 . Operators 2 | . 2 . Fabricators . | . . . Repair Stations . | . . . Recycling Units 2 | . 2 . Reject 1 | . 1 . Mask 1 | . 1 . Scanalyzers . | . . . Garrison Access . | . . . Data Cores Recovered . | . . . Used . | . . . Hacking Detections 7 | . 7 . Full Trace Events 1 | . 1 . Feedback Events . | . . . Feedback Blocked . | . . . Robot Schematics Acquired . | . . . Robots Built . | . . . Authchips . | . . . Time . | . . . Total Robot Build Rating . | . . . Part Schematics Acquired . | . . . Parts Built . | . . . Authchips . | . . . Time . | . . . Total Part Build Rating . | . . . Parts Repaired . | . . . Time . | . . . Parts Recycled . | . . . Recycled Matter . | . . . Retrieved Matter . | . . . Retrieved Components . | . . . Parts Scanalyzed . | . . . Part Schematics Acquired . | . . . Parts Damaged . | . . . Bothacking | -11 -10 -10 ------------ Run | Yrd Mat Sub Used RIF Installer . | . . . Robots Hacked . | . . . Non-combat . | . . . Combat . | . . . Robot Hacks Applied . | . . . Relay Couplers Released . | . . . Fabnet Peak Effective % . | . . . Robots Rewired . | . . . Allies Hacked . | . . . Hacks Repelled . | . . . Allies | -11 -10 -10 -------- Run | Yrd Mat Sub Total Allies . | . . . Largest Group . | . . . Highest-Rated Group . | . . . Highest-Rated Ally . | . . . Total Orders . | . . . Ally Attacks . | . . . Total Damage . | . . . Kills . | . . . Allies Corrupted . | . . . Allies Melted . | . . . Intel | -11 -10 -10 ------- Run | Yrd Mat Sub Robot Analysis Total . | . . . Derelict Logs Recovered 2 | . . 2 Drone Launches . | . . . Drone Recoveries . | . . . Exploration | -11 -10 -10 ------------- Run | Yrd Mat Sub Turns Passed 5111 | 56 2204 2851 Spaces Moved 2235 | 54 1131 1050 Core 17 | 17 . . Treads 683 | . 62 621 Legs . | . . . Wheels 1535 | 37 1069 429 Hover . | . . . Flight . | . . . Fastest Speed 50 | 50 90 105 Average Speed 170 | 80 117 231 Slowest Speed 360 | 100 320 360 Overloaded Moves . | . . . Propulsion Burnouts . | . . . Robots Hopped . | . . . Cave-ins Triggered . | . . . Exploration Rate (%) 51 | 3 98 53 Regions Visited 2 Branch Regions 1 Pre-discovered Areas . | . . . Known Exits Taken . | . . . Unknown Exits Taken 2 | 1 1 . Scrap Searched 4 | . . 4 Spaces Dug 23 | . . 23 Terrain Destroyed 122 | . 5 117 Melee . | . . . Projectile 3 | . . 3 AOE 119 | . 5 114 Terrain Rammed . | . . . Walls Destroyed . | . . . Machines Disabled . | . . . Actions | -11 -10 -10 --------- Run | Yrd Mat Sub Total 3351 | 65 1876 1410 Wait 874 | . 591 283 Move 2233 | 53 1130 1050 Hop . | . . . Pick Up 43 | 7 27 9 Fast Attach 3 | 2 . 1 Attach 19 | 3 8 8 Detach . | . . . Swap 46 | . 40 6 Drop 10 | . 5 5 Fire 111 | . 63 48 Melee . | . . . Ram . | . . . Kick . | . . . Crush 12 | . 12 . Escape Stasis . | . . . Rewire . | . . . Trap . | . . . Miscellaneous . | . . . Route ------- -11/Scrapyard -10/Materials (discovered 6 exits: [*Mat x3] / [*Min x2] / *Sub) -10/Subcaves History --------- Turn | Location | Event 2 | -11/Scrapyard | Met Revision 17 4 | -11/Scrapyard | Discovered new exit (range 15) 57 | -11/Scrapyard | Entered Materials 136 | -10/Materials | Discovered new exit (range 8) 311 | -10/Materials | Discovered new exit (range 7) 315 | -10/Materials | Build established: Mutant 908 | -10/Materials | Discovered new exit (range 13) 1292 | -10/Materials | Lost 5 parts (1n1u3w) 1297 | -10/Materials | Core integrity fell below 50% 2027 | -10/Materials | Discovered new exit (range 9) 2051 | -10/Materials | Discovered new exit (range 15) 2253 | -10/Materials | Discovered new exit (range 8) 2261 | -10/Materials | Entered Subcaves 2638 | -10/Subcaves | Visited 4L-MR0's lab 2779 | -10/Subcaves | Disturbed a concealed Subdweller 2901 | -10/Subcaves | Lost 4 parts (1p2n1w) 3483 | -10/Subcaves | Learned Materials security intel 3491 | -10/Subcaves | Learned 2 Materials zone layouts 4065 | -10/Subcaves | Core integrity fell below 20% 4098 | -10/Subcaves | A swath of the cavern ceiling suddenly collapsed 5107 | -10/Subcaves | Ambushed by Subdweller buried in earth 5112 | -10/Subcaves | Destroyed by CP-9Q3(R) with Subdweller Beam Cannon Last Messages --------------- 04236_ Acquired 7 matter. 04243_ Acquired 47 matter. 04255_ System corrupted: Component data lost. 04313_ Sub. Monowheel shoots sparks and powers down. 04314_ Dropped Broken Sub. Monowheel. 04439_ System corrupted: Component data lost. 04501_ KJATESZDAIXRVT1 0YK:HLJCZJ2VUEFNG4GA 04528_ System corrupted: FCS attempts to trigger Sub. Shrapnel Launcher. 04528_ System corrupted: Sub. Shrapnel Launcher misfires. 04619_ System corrupted: Energy discharge (-28). 04706_ System corrupted: Matter fused (-9). 04717_ Subatomizers dissect the Sub. Machine Gun, destroying it. 04771_ System corrupted: FCS attempts to trigger Sub. Shrapnel Launcher. 04771_ System corrupted: Sub. Shrapnel Launcher misfires. 04836_ System corrupted: Component data lost. 04880_ System corrupted: Substantial component data lost. 04919_ |74EAHE OHFNGAACCRGKFFYV 04960_ TVULNGLGI2Y22ROWS 4P=8G 05106_ Lgt. Ion Engine destroyed. 05108_ ZV-XV2(R): "ARGHSUB!" Map ----- +----------------------------------------------------+ | ???# #?# ## #??## ##????????? | | ???## ### ## ##?# #????????? | | ????## ## ## ### ##????????? | | ?????# #### ##?????????? | | ????# #### ###??######??????????? | | ???# ##??#### & #####????????????????? | | ???## #????### & & ### #????????????????? | | ????## #???## ##?# #????????????????? | | ?????###??## ##?# #????????????????? | | ??????????# ###### #### #????????????????? | | ?????????## #????## #### #????????????????? | | ?????????# ##?#### #?# ##????????????????? | | ????????## ### ## ######?????????????????? | | ???????## ####??????????????????? | | ???????# #####??????????????? | | ???????## ## ### #??????????????? | | ????????##?####?#### #??????????????? | | ??????????????????## #??????????????? | | ??????????????????# ## #????????????? | | ??????????????????# ##?????????????????? | | ??????????????????## #??????????????????? | | ???????????????????## ##??????????????????? | | ????????????????????## #???????????????????? | | ?????????????????????# #???????????????????? | | ?????????????????????# ##????#??????????????? | | ?????????????????????## @ ;#?? #??????????????? | | ?????????????????????## ## #???????????????? | | ?????????????????????# #????????????????? | | ?????????????????????# ## #????????????? | | ?????????????????????## #???????????? | | ??????????????????????####RR ##???????????? | | ????????????????????????? ; ;; #????????????? | | ????????????????????????? ; ;; #????????????? | | ???????????????????????? ;;# #????????????? | | ????????????????????????## ;;#? ???????????? | | ?????????????????????????# ;;"?? #??????????? | | ?????????????????????????# R ;## "?? ???????????? | | ?????????????????????????# ;;#?" ??????????????? | | ?????????????????????????? ; #?? #?????????????? | | ?????????????????????????? ;; #?????????????????? | | ?????????????????????????? ;" ??????????????????? | | ??????????????????????????"##????????????????????? | | ?????????????????????????????????????????????????? | | ?????????????????????????????????????????????????? | | ?????????????????????????????????????????????????? | | ?????????????????????????????????????????????????? | | ?????????????????????????????????????????????????? | | ?????????????????????????????????????????????????? | | ?????????????????????????????????????????????????? | | ?????????????????????????????????????????????????? | +----------------------------------------------------+ Best States ------------- Heat Dissipation 25 Energy Generation 14 Energy Capacity 250 Matter Stores 300 Matter Capacity 300 Sight Range 16 Terrain Scan Range 14 Terrain Scan Density 10 Armor Coverage 150 Evasion (%) 50 Recoil Reduction 2 Item Schematics ----------------- None Robot Schematics ------------------ None Fabricated ------------ Nothing Alien Tech Used ----------------- None Achievements -------------- None Challenges ------------ None Game ------ Seed GrapheneMagneticWarhead Manual? 0 Play Time 00:32:12 Cumulative 29.1 hours Start 2025.04.26 @ 21:14:58 End 2025.04.26 @ 21:49:43 Sessions 1 Manual Loads 0 Difficulty Rogue Special Mode None Game No. 54 Rogue 54 Adventurer 0 Explorer 0 Win Type - Total 0 Types 0/0/0/0/0/0/0/0/0 Lore% 16 Gallery% 18 Achievement% 17 Wizard Run 0 Options --------- Layout 0 ASCII 0 Keyboard 0 Movement Mouse Keybinds 1 Fullscreen 2 Font 28/SmallcapsGlow Map View 84x54 Zoom Use 0% Tactical HUD 1 Map Filters NONE Filters NONE Steam 1 RUN: 652c3bb6-5682-4853-a677-4242b8a501c3